Cogmind - Beta 15 @@@ ROGUE MODE // 2025.07.30 @ 16:20:29 Player: Jiber Result: Destroyed by G-34 Mercenary with Small Laser Performance ------------- Evolutions (1) 500 Regions Visited (2) 400 Robots Destroyed (20) 100 Value Destroyed (552) 552 Prototype IDs (0) 0 Alien Tech Used (0) 0 Bonus (0) 0 TOTAL SCORE: 1552 Bonus ------- None Cogmind --------- Core Integrity 0/400 Matter 283/300 Energy 265/265 System Corruption 0% Temperature Cool (92) Movement Walking (120) Location -9/Materials Parts ------- > --- POWER (1) -------- Improved Ion Engine > --- PROPULSION (3) --- Aluminum Leg Aluminum Leg Improved Aluminum Leg > --- UTILITY (3) ------ Small Storage Unit > --- WEAPON (2) ------- Beam Rifle Light Assault Rifle > --- INVENTORY (8) ---- Ion Engine Light Ion Engine Light Treads Light Treads Light Treads Aluminum Leg Peak State ------------ > --- POWER ------------ Improved Ion Engine > --- PROPULSION ------- Aluminum Leg Aluminum Leg Aluminum Leg > --- UTILITY ---------- Small Storage Unit Propulsion Shielding Light Armor Plating > --- WEAPON ----------- Light Assault Rifle Heavy Assault Rifle > --- INVENTORY -------- Ion Engine Light Treads Light Treads Light Treads Light Treads Assault Rifle [Rating: 11] Favorites ----------- Power Ion Engine Engine Ion Engine Propulsion Aluminum Leg Leg Aluminum Leg Utility Small Storage Unit Storage Small Storage Unit Protection Propulsion Shielding Weapon Light Assault Rifle Energy Gun Beam Rifle Ballistic Gun Light Assault Rifle Build | -11 -10 -9 ------- Run | Yrd Mat Mat Slots Evolved 2 | . . 2 Power . | . . . Propulsion 1 | . . 1 Utility 1 | . . 1 Weapon . | . . . Parts Attached 24 | 6 . 18 Power 4 | 1 . 3 Engine 4 | 1 . 3 Core . | . . . Reactor . | . . . Propulsion 10 | 2 . 8 Treads . | . . . Leg 10 | 2 . 8 Wheel . | . . . Hover . | . . . Flight . | . . . Utility 5 | 1 . 4 Device . | . . . Storage 1 | 1 . . Processor . | . . . Hackware . | . . . Protection 4 | . . 4 Artifact . | . . . Weapon 5 | 2 . 3 Energy Gun 1 | . . 1 Energy Cannon . | . . . Ballistic Gun 4 | 2 . 2 Ballistic Cannon . | . . . Launcher . | . . . Special Weapon . | . . . Impact Weapon . | . . . Slashing Weapon . | . . . Piercing Weapon . | . . . Special Melee Weapon . | . . . Unidentified Prototypes . | . . . Parts Lost 9 | . . 9 Power . | . . . Propulsion 3 | . . 3 Utility 3 | . . 3 Weapon 3 | . . 3 Highest Loss Streak 4 | . . 4 To Critical Strikes . | . . . Average Backups 4 | 3 2 6 Power . | . . 1 Propulsion 3 | 1 2 4 Utility . | . . . Weapon . | . . . Tool/Special . | . . . Unused Backups 4 | . . 4 Power . | . . . Propulsion 4 | . . 4 Utility . | . . . Weapon . | . . . Tool/Special . | . . . Average Slot Usage (%) 84 | . 85 83 Engine 12 | . 14 11 Leg 28 | . 28 29 Storage 12 | . 14 11 Protection 7 | . . 11 Ballistic Gun 22 | . 28 20 Peak Build Rating 11 | 6 6 11 Average Rating 7 | 2 6 8 On Entrance 4 | . 6 6 Naked Turns . | . . . Heaviest Build 20 | 13 13 20 Greatest Support 33 | 20 20 33 Greatest Overweight (x) 1 | . . 1 Average Overweight (x) . | . . . Largest Inventory Capacity 8 | 8 8 8 Average Capacity 7 | 5 8 8 Most Carried 8 | 5 2 8 Average Carried 4 | 3 2 6 Final Capacity 8 | 8 8 8 Final Carried 6 | 2 2 6 Class Distribution -------------------- 60% | Mutant 39% | Scavenger-Mutant Dominant Class ---------------- Mutant | -10/Materials Scavenger-Mutant | -9/Materials Resources | -11 -10 -9 ----------- Run | Yrd Mat Mat Matter Collected 759 | 221 55 483 Remotely . | . . . Salvage Created 804 | . 40 764 Parts 50 | . 6 44 Haulers Intercepted . | . . . Recyclers Shooed 2 | . . 2 Parts Field Recycled . | . . . Retrieved Matter . | . . . Parts Self-Destructed . | . . . Prevented . | . . . Kills | -11 -10 -9 ------- Run | Yrd Mat Mat Combat Hostiles Destroyed 18 | . 3 15 Guns 18 | . 3 15 Classes Destroyed 5 | . 1 4 Recycler 2 | . . 2 Swarmer 6 | . 3 3 Grunt 8 | . . 8 Duelist 1 | . . 1 Sentry 3 | . . 3 Best Kill Streak 7 | . 1 7 Combat Bots Only 6 | . 1 6 Max Kills in Single Turn 1 | . 1 1 Gunslinging . | . . . Exploded . | . . . Melee . | . . . Uniques/NPCs Destroyed . | . . . Combat | -11 -10 -9 -------- Run | Yrd Mat Mat Hostile Shots Fired 185 | . 20 165 Missed 47 | . 6 41 Hits 138 | . 14 124 Melee 8 | . . 8 Projectile 130 | . 14 116 Critical Strikes 3 | . . 3 Actively Blocked 1 | . . 1 Damage Taken 1776 | . 118 1658 Core 411 | . 9 402 Absorbed by Shields . | . . . Redirected to Shielding 130 | . . 130 Core Remaining (%) 98 | 100 96 . Volleys Fired 91 | . 16 75 Largest 2 | . 2 2 Hottest 76 | . 40 76 Shots Fired 163 | . 32 131 Gun 163 | . 32 131 Cannon . | . . . Launcher . | . . . Special . | . . . Kinetic 157 | . 32 125 Thermal 6 | . . 6 Explosive . | . . . Electromagnetic . | . . . Robot Hit Streak 7 | . 5 7 Robot Miss Streak 5 | . 4 5 Penetration Max . | . . . Secondary Targets 1 | . . 1 Max Gunslinging Chain 1 | . . 1 Shots Hit Robots 98 | . 17 81 Core Hits 47 | . 8 39 Critical Kills . | . . . Critical Parts Destroyed 1 | . . 1 Critical Strikes 2 | . . 2 Burn 1 | . . 1 Destroy 1 | . . 1 Melee Attacks . | . . . Impact . | . . . Slashing . | . . . Piercing . | . . . Sneak Attacks . | . . . Combat Hostiles . | . . . Follow-up Attacks . | . . . Damage Inflicted 1157 | . 196 961 Guns 1151 | . 192 959 Cannons . | . . . Explosions . | . . . Melee . | . . . Ramming 6 | . 4 2 Kinetic 1065 | . 192 873 Thermal 86 | . . 86 Explosive . | . . . Electromagnetic . | . . . Impact . | . . . Slashing . | . . . Piercing . | . . . Highest Corruption . | . . . Average Corruption . | . . . Corruption Purged . | . . . Corruption Blocked . | . . . Overload Shots . | . . . Overflow Damage . | . . . Projectiles . | . . . Explosions . | . . . Melee . | . . . Knockbacks . | . . . Impact . | . . . Kinetic . | . . . Secondary . | . . . Self-Inflicted Damage . | . . . Shots . | . . . Rammed . | . . . Targets Rammed 2 | . 1 1 Kicked 2 | . 1 1 Crushed . | . . . Highest Temperature 116 | . . 116 Average Temperature 19 | . . 19 Received Heat Transfer 663 | . . 663 Siege Activations . | . . . Martial Activations . | . . . Shielding Activations . | . . . Robots Disrupted . | . . . Combat Hostiles . | . . . Robots Corrupted . | . . . Combat Hostiles . | . . . Parts Fried . | . . . Impact Corruptions . | . . . Robots Melted . | . . . Combat Hostiles . | . . . Parts Melted . | . . . Heat Transferred 296 | . . 296 Parts Sabotaged . | . . . Parts Stolen . | . . . Parts Stripped . | . . . Power Chain Reactions . | . . . Alert | -11 -10 -9 ------- Run | Yrd Mat Mat Maximum Alert Level . | . . . Low Security (%) 100 | 100 100 100 Level 1 . | . . . Level 2 . | . . . Level 3 . | . . . Level 4 . | . . . Level 5 . | . . . High Security . | . . . Max Security . | . . . Peak Influence 171 | . 95 171 Initial 39 | . . 39 Average 64 | . 19 96 Influence Increases 521 | . 129 392 Destroy 0b10 Robot/C 360 | . 60 300 Destroy 0b10 Robot/NC 10 | . . 10 Destroy Leader 90 | . 10 80 Trap Triggered on 0b10 10 | . 10 . Successful Hack 6 | . 4 2 Lose Combat Pursuer 45 | . 45 . Influence Decreases 394 | . 34 360 Entered New Map 56 | . . 56 Time Decay 248 | . 34 214 Lost Part 90 | . . 90 Squads Dispatched 3 | . 2 1 Investigation 3 | . 2 1 Extermination . | . . . Reinforcement . | . . . Assault . | . . . Garrison . | . . . Intercept . | . . . Searches Triggered . | . . . Construction Impeded . | . . . Haulers Reinforced . | . . . Active Scanning Responses . | . . . Cargo Convoy Interrupts . | . . . Stealth | -11 -10 -9 --------- Run | Yrd Mat Mat Distress Signals 5 | . 3 2 Communications Jammed . | . . . Distress Signals . | . . . Times Spotted 31 | . 9 22 Peak Tracking Total 7 | . 7 6 Tactical Retreats 2 | . 2 . Traps | -11 -10 -9 ------- Run | Yrd Mat Mat Traps Triggered . | . . . Indirectly . | . . . Trap Hack Attempts . | . . . Triggered . | . . . Disarmed . | . . . Reprogrammed 6 | . 6 . Reused 1 | . 1 . Traps Extracted . | . . . Installed . | . . . Triggered 1 | . 1 . Machines | -11 -10 -9 ---------- Run | Yrd Mat Mat Machines Disabled . | . . . Max in Single Turn . | . . . Machines Repaired . | . . . Machines Dismantled . | . . . Machines Sabotaged . | . . . Overloaded Fab Kills . | . . . Hacking | -11 -10 -9 --------- Run | Yrd Mat Mat Machines Accessed 3 | . 2 1 Terminals 2 | . 2 . Fabricators . | . . . Repair Stations 1 | . . 1 Recycling Units . | . . . Scanalyzers . | . . . Garrison Access . | . . . Total Hacks 10 | . 7 3 Successful 5 | . 4 1 Failed 5 | . 3 2 Catastrophic 3 | . 2 1 Database Lockouts . | . . . Manual . | . . . Terminals 7 | . 7 . Fabricators . | . . . Repair Stations 3 | . . 3 Recycling Units . | . . . Scanalyzers . | . . . Garrison Access . | . . . Terminal Hacks 4 | . 4 . Alert Level 1 | . 1 . Locate Traps 1 | . 1 . Reprogram Traps 1 | . 1 . Dispatch Records 1 | . 1 . Fabricator Hacks . | . . . Repair Station Hacks 1 | . . 1 Scan Component 1 | . . 1 Recycling Unit Hacks . | . . . Scanalyzer . | . . . Garrison Access Hacks . | . . . Unauthorized Hacks . | . . . Terminals . | . . . Fabricators . | . . . Repair Stations . | . . . Recycling Units . | . . . Scanalyzers . | . . . Garrison Access . | . . . Data Cores Recovered . | . . . Used . | . . . Hacking Detections 3 | . 2 1 Full Trace Events 2 | . 1 1 Feedback Events . | . . . Feedback Blocked . | . . . Robot Schematics Acquired . | . . . Robots Built . | . . . Authchips . | . . . Time . | . . . Total Robot Build Rating . | . . . Part Schematics Acquired . | . . . Parts Built . | . . . Authchips . | . . . Time . | . . . Total Part Build Rating . | . . . Parts Repaired . | . . . Time . | . . . Parts Recycled . | . . . Recycled Matter . | . . . Retrieved Matter . | . . . Retrieved Components . | . . . Parts Scanalyzed . | . . . Part Schematics Acquired . | . . . Parts Damaged . | . . . Bothacking | -11 -10 -9 ------------ Run | Yrd Mat Mat Used RIF Installer . | . . . Robots Hacked . | . . . Non-combat . | . . . Combat . | . . . Robot Hacks Applied . | . . . Relay Couplers Released . | . . . Fabnet Peak Effective % . | . . . Robots Rewired . | . . . Allies Hacked . | . . . Hacks Repelled . | . . . Allies | -11 -10 -9 -------- Run | Yrd Mat Mat Total Allies . | . . . Largest Group . | . . . Highest-Rated Group . | . . . Highest-Rated Ally . | . . . Total Orders . | . . . Ally Attacks . | . . . Total Damage . | . . . Kills . | . . . Allies Corrupted . | . . . Allies Melted . | . . . Intel | -11 -10 -9 ------- Run | Yrd Mat Mat Active Infowar (turns) . | . . . Robot Analysis Total . | . . . Derelict Logs Recovered . | . . . Drone Launches . | . . . Drone Recoveries . | . . . Exploration | -11 -10 -9 ------------- Run | Yrd Mat Mat Turns Passed 748 | 43 255 450 Spaces Moved 379 | 35 175 169 Core 16 | 16 . . Treads . | . . . Legs 363 | 19 175 169 Wheels . | . . . Hover . | . . . Flight . | . . . Fastest Speed 50 | 50 120 120 Average Speed 118 | 88 120 122 Slowest Speed 190 | 120 120 190 Overloaded Moves . | . . . Propulsion Burnouts . | . . . Robots Hopped . | . . . Potential Cave-ins . | . . . Cave-ins Triggered . | . . . Exploration Rate (%) 19 | 3 40 14 Regions Visited 2 Branch Regions . Pre-discovered Areas . | . . . Known Exits Taken . | . . . Unknown Exits Taken 2 | 1 1 . Scrap Searched . | . . . Spaces Dug . | . . . Terrain Destroyed . | . . . Melee . | . . . Projectile . | . . . AOE . | . . . Terrain Rammed . | . . . Walls Destroyed . | . . . Machines Disabled . | . . . Actions | -11 -10 -9 --------- Run | Yrd Mat Mat Total 528 | 45 191 292 Wait . | . . . Move 377 | 34 174 169 Hop . | . . . Pick Up 21 | 5 . 16 Fast Attach 4 | 3 . 1 Attach 12 | 3 . 9 Detach . | . . . Swap 14 | . . 14 Drop 7 | . . 7 Fire 91 | . 16 75 Melee . | . . . Ram . | . . . Kick 2 | . 1 1 Crush . | . . . Escape Stasis . | . . . Rewire . | . . . Trap . | . . . Miscellaneous . | . . . Route ------- -11/Scrapyard -10/Materials (discovered 2 exits: *Mat x2) -9/Materials History --------- Turn | Location | Event 5 | -11/Scrapyard | Discovered new exit (range 15) 44 | -11/Scrapyard | Entered Materials 121 | -10/Materials | Discovered new exit (range 16) 281 | -10/Materials | Discovered new exit (range 16) 299 | -10/Materials | Entered another Materials area 299 | -9/Materials | Evolved 2 slots: Propulsion x1, Utility x1 306 | -9/Materials | Build established: Mutant 577 | -9/Materials | Core integrity fell below 50% 635 | -9/Materials | Lost 3 parts (1n1u1w) 702 | -9/Materials | Core integrity fell below 20% 749 | -9/Materials | Destroyed by G-34 Mercenary with Small Laser Last Messages --------------- 00673_ K-01 Serf collects debris. 00676_ Acquired 10 matter. 00676_ K-01 Serf collects debris. 00695_ Assault Rifle destroyed. 00708_ Propulsion Shielding destroyed. 00713_ L-31 Rogue suffers critical hit (Burn). 00713_ Aluminum Leg destroyed. 00718_ L-31 Rogue destroyed. 00722_ Acquired Imp. Aluminum Leg. 00723_ Acquired 28 matter. 00725_ Aluminum Leg destroyed. 00726_ K-01 Serf cleans the Terminal. 00731_ R-06 Scavenger collects Sml. Laser. 00732_ K-01 Serf collects debris. 00735_ K-01 Serf cleans the Terminal. 00736_ R-06 Scavenger collects Aluminum Leg. 00740_ Acquired 16 matter. 00741_ K-01 Serf collects debris. 00742_ G-34 Mercenary destroyed. 00744_ K-01 Serf collects debris. Map ----- +----------------------------------------------------+ | ?????????????????????????????????????????????????? | | ?????????????????????????????????????????????????? | | ?????????????????????????????????????????????????? | | ?????????????????????????????????????????????????? | | ?????????????????????????????????????????????????? | | ????????????????????????????????###+###??????????? | | ????????????????? ????????????# #??????????? | | ????????????????# ????????????# #??????????? | | ????????????????# #???????????? ??????????? | | ????????????????+ +???????????? ???????????? | | ????????????????# #???????????? ???????????? | | ????????????????# #????????????# #???????????? | | ????????????????# #????????????# #???????????? | | ????????????????# #????????????# #???????????? | | ????????????????# #????????????# #???????????? | | ????????????????# #????????????#^^^#???????????? | | ????????????????# #????????????#^^^#???????????? | | ????????????????# #????????????#% #???????????? | | ????????????????# #????????????# % #???????????? | | ????????????????# #????????????# #???????????? | | ????????????????# !#????????????# #???????????? | | ????????????????# %#????????????# #???????????? | | ????????????????# *#????????????# #???????????? | | ????????????????# u############## #???????????? | | ????????????????#% =g kk #???????????? | | ????????????????# = @ % #???????????? | | ????????????????# "% * % #???????????? | | ????????????????# T #???????????? | | ????????????????# %" #???????????? | | ????????????????# % u #???????????? | | ????????????????# ru #???????????? | | ????????????????# #???????????? | | ????????????????# ###########???????????? | | ????????????????# #? #???????????? | | ????????????????# # /= #???????????? | | ????????????????# !! # /= #???????????? | | ?????????# "????# ! r + """ / ????????????? | | ?????????# """??# ! # """ ????????????? | | ?????????# """ # # """ ?????????????? | | ?????????# + #? ?????????????? | | ?????????# # r#? ??????????????? | | ?????????# ??# ###### #??######?????????????? | | ?????????# ????# #????# #?????????????????????? | | ?????????#??????# #????# #?????????????????????? | | ????????????????# #????# #?????????????????????? | | ????????????????# #????# #?????????????????????? | | ????????????????# #????# +?????????????????????? | | ????????????????# #????# #?????????????????????? | | ????????????????#+###### #?????????????????????? | | ????????????????# # #?????????????????????? | +----------------------------------------------------+ Best States ------------- Heat Dissipation 28 Energy Generation 12 Energy Capacity 265 Matter Stores 300 Matter Capacity 300 Sight Range 16 Terrain Scan Density 10 Armor Coverage 150 Propulsion Shielding 33 Evasion (%) 55 Item Schematics ----------------- None Robot Schematics ------------------ None Fabricated ------------ Nothing Repaired ---------- Nothing Alien Tech Used ----------------- None Achievements -------------- None Challenges ------------ None Game ------ Seed TechThermoelectricCalibrator Manual? 0 Play Time 00:12:20 Cumulative 21.0 hours Start 2025.07.30 @ 15:11:36 End 2025.07.30 @ 16:20:29 Sessions 1 Manual Loads 0 Difficulty Rogue Special Mode None Game No. 32 Rogue 32 Adventurer 0 Explorer 0 Win Type - Total 0 Types 0/0/0/0/0/0/0/0/0/0 Lore% 10 Gallery% 23 Achievement% 18 Wizard Run 0 Options --------- Layout 1 ASCII 0 Keyboard 0 Movement Mouse Keybinds 0 Fullscreen 1 Font 32/SmallcapsGlow Map View 50x35 Zoom Use 0% Tactical HUD 1 Map Filters NONE Filters NONE Steam 1 RUN: f903405f-ad31-449c-a57b-754d4fdbf656